Cogmind - Beta 14 @@@ ROGUE MODE // 2025.03.26 @ 16:04:03 // Winter2019/RPGLIKE Player: Lava Result: Destroyed by G-34 Mercenary with Small Laser Performance ------------- Evolutions (0) 0 Regions Visited (1) 200 Robots Destroyed (4) 20 Value Destroyed (131) 131 Prototype IDs (0) 0 Alien Tech Used (0) 0 Bonus (0) 0 TOTAL SCORE: 351 Bonus ------- None Cogmind --------- Core Integrity 0/600 Matter 200/300 Energy 125/125 System Corruption 0% Temperature Cool (6) Movement Treading (160) Location -10/Materials Parts ------- > --- POWER (1) -------- Light Ion Engine > --- PROPULSION (2) --- Light Treads Light Treads > --- UTILITY (2) ------ Structural Scanner Visual Processing Unit > --- WEAPON (2) ------- Medium Laser Small Laser > --- INVENTORY (3) ---- Mining Laser Mining Claw Peak State ------------ > --- POWER ------------ Light Ion Engine > --- PROPULSION ------- Light Treads Light Treads > --- UTILITY ---------- Structural Scanner Visual Processing Unit > --- WEAPON ----------- Medium Laser Small Laser > --- INVENTORY -------- Mining Laser Mining Claw [Rating: 8] Favorites ----------- Power Light Ion Engine Engine Light Ion Engine Propulsion Light Treads Treads Light Treads Utility Visual Processing Unit Device Structural Scanner Processor Visual Processing Unit Weapon Medium Laser Energy Gun Medium Laser Build | -11 -10 ------- Run | Yrd Mat Slots Evolved 3 | 3 . Power . | . . Propulsion 1 | 1 . Utility 1 | 1 . Weapon 1 | 1 . Parts Attached 7 | 5 2 Power 1 | 1 . Engine 1 | 1 . Core . | . . Reactor . | . . Propulsion 2 | 2 . Treads 2 | 2 . Leg . | . . Wheel . | . . Hover . | . . Flight . | . . Utility 2 | . 2 Device 1 | . 1 Storage . | . . Processor 1 | . 1 Hackware . | . . Protection . | . . Artifact . | . . Weapon 2 | 2 . Energy Gun 2 | 2 . Energy Cannon . | . . Ballistic Gun . | . . Ballistic Cannon . | . . Launcher . | . . Special Weapon . | . . Impact Weapon . | . . Slashing Weapon . | . . Piercing Weapon . | . . Special Melee Weapon . | . . Unidentified Prototypes . | . . Parts Lost . | . . Power . | . . Propulsion . | . . Utility . | . . Weapon . | . . Highest Loss Streak . | . . To Critical Strikes . | . . Average Slot Usage (%) 87 | . 87 Engine 14 | . 14 Treads 28 | . 28 Device 4 | . 4 Processor 11 | . 11 Energy Gun 28 | . 28 Peak Build Rating 8 | 5 8 Average Rating 6 | 3 6 On Entrance 2 | . 5 Naked Turns . | . . Heaviest Build 6 | 6 6 Greatest Support 40 | 40 40 Greatest Overweight (x) . | . . Average Overweight (x) . | . . Largest Inventory Capacity 3 | 3 3 Average Capacity 3 | 3 3 Most Carried 3 | 3 3 Average Carried 1 | 1 1 Final Capacity 3 | 3 3 Final Carried 2 | . 2 Class Distribution -------------------- 100% | Mutant Dominant Class ---------------- Mutant | -10/Materials Resources | -11 -10 ----------- Run | Yrd Mat Matter Collected 324 | 250 74 Remotely . | . . Salvage Created 143 | . 143 Parts 4 | . 4 Haulers Intercepted . | . . Recyclers Shooed . | . . Parts Field Recycled . | . . Retrieved Matter . | . . Parts Self-Destructed . | . . Prevented . | . . Kills | -11 -10 ------- Run | Yrd Mat Combat Hostiles Destroyed 3 | . 3 Guns 3 | . 3 Classes Destroyed 2 | . 2 Watcher 1 | . 1 Grunt 3 | . 3 Best Kill Streak 2 | . 2 Combat Bots Only 2 | . 2 Max Kills in Single Turn 1 | . 1 Gunslinging . | . . Exploded . | . . Melee . | . . Uniques/NPCs Destroyed . | . . Combat | -11 -10 -------- Run | Yrd Mat Hostile Shots Fired 70 | . 70 Missed 13 | . 13 Damage Taken 732 | . 732 Core 605 | . 605 Absorbed by Shields . | . . Redirected to Core 405 | . 405 Core Remaining (%) 100 | 100 . Volleys Fired 20 | . 20 Largest 2 | . 2 Hottest 90 | . 90 Shots Fired 40 | . 40 Gun 40 | . 40 Cannon . | . . Launcher . | . . Special . | . . Kinetic . | . . Thermal 40 | . 40 Explosive . | . . Electromagnetic . | . . Robot Hit Streak 7 | . 7 Robot Miss Streak 5 | . 5 Penetration Max . | . . Secondary Targets 2 | . 2 Max Gunslinging Chain 1 | . 1 Shots Hit Robots 29 | . 29 Core Hits 11 | . 11 Critical Kills . | . . Critical Parts Destroyed . | . . Critical Strikes 2 | . 2 Burn 2 | . 2 Melee Attacks . | . . Impact . | . . Slashing . | . . Piercing . | . . Sneak Attacks . | . . Combat Hostiles . | . . Follow-up Attacks . | . . Damage Inflicted 331 | . 331 Guns 331 | . 331 Cannons . | . . Explosions . | . . Melee . | . . Ramming . | . . Kinetic . | . . Thermal 331 | . 331 Explosive . | . . Electromagnetic . | . . Impact . | . . Slashing . | . . Piercing . | . . Highest Corruption . | . . Average Corruption . | . . Corruption Purged . | . . Corruption Blocked . | . . Overload Shots . | . . Overflow Damage . | . . Projectiles . | . . Explosions . | . . Melee . | . . Knockbacks . | . . Impact . | . . Kinetic . | . . Secondary . | . . Self-Inflicted Damage . | . . Shots . | . . Rammed . | . . Targets Rammed . | . . Kicked . | . . Crushed . | . . Highest Temperature 560 | . 560 Average Temperature 235 | . 235 Received Heat Transfer 366 | . 366 Effects 9 | . 9 Shutdowns 3 | . 3 Matter Decay 3 | . 3 Short Circuit 1 | . 1 Damage (minor) 1 | . 1 Damage (core) 1 | . 1 Siege Activations . | . . Robots Corrupted . | . . Combat Hostiles . | . . Parts Fried . | . . Impact Corruptions . | . . Robots Melted . | . . Combat Hostiles . | . . Parts Melted 3 | . 3 Heat Transferred 1004 | . 1004 Parts Sabotaged . | . . Parts Stolen . | . . Parts Stripped . | . . Power Chain Reactions . | . . Alert | -11 -10 ------- Run | Yrd Mat Peak Influence 117 | . 117 Initial . | . . Average 37 | . 43 Maximum Alert Level . | . . Low Security (%) 100 | 100 100 Level 1 . | . . Level 2 . | . . Level 3 . | . . Level 4 . | . . Level 5 . | . . High Security . | . . Max Security . | . . Squads Dispatched 2 | . 2 Investigation 1 | . 1 Extermination . | . . Reinforcement 1 | . 1 Assault . | . . Garrison . | . . Intercept . | . . Searches Triggered . | . . Construction Impeded . | . . Haulers Reinforced . | . . Active Scanning Responses . | . . Cargo Convoy Interrupts . | . . Stealth | -11 -10 --------- Run | Yrd Mat Distress Signals 1 | . 1 Communications Jammed . | . . Distress Signals . | . . Times Spotted 8 | . 8 Peak Tracking Total 6 | . 6 Tactical Retreats . | . . Traps | -11 -10 ------- Run | Yrd Mat Traps Triggered . | . . Indirectly . | . . Trap Hack Attempts . | . . Triggered . | . . Disarmed . | . . Reprogrammed . | . . Reused . | . . Traps Extracted . | . . Installed . | . . Triggered . | . . Machines | -11 -10 ---------- Run | Yrd Mat Machines Disabled . | . . Max in Single Turn . | . . Machines Repaired . | . . Machines Dismantled . | . . Machines Sabotaged . | . . Overloaded Fab Kills . | . . Hacking | -11 -10 --------- Run | Yrd Mat Machines Accessed 1 | . 1 Terminals 1 | . 1 Fabricators . | . . Repair Stations . | . . Recycling Units . | . . Scanalyzers . | . . Garrison Access . | . . Total Hacks 3 | . 3 Successful . | . . Failed 3 | . 3 Catastrophic 2 | . 2 Database Lockouts . | . . Manual 3 | . 3 Terminals 3 | . 3 Fabricators . | . . Repair Stations . | . . Recycling Units . | . . Scanalyzers . | . . Garrison Access . | . . Terminal Hacks . | . . Fabricator Hacks . | . . Repair Station Hacks . | . . Recycling Unit Hacks . | . . Scanalyzer . | . . Garrison Access Hacks . | . . Unauthorized Hacks . | . . Terminals . | . . Fabricators . | . . Repair Stations . | . . Recycling Units . | . . Scanalyzers . | . . Garrison Access . | . . Data Cores Recovered . | . . Used . | . . Hacking Detections 1 | . 1 Full Trace Events 1 | . 1 Feedback Events . | . . Feedback Blocked . | . . Robot Schematics Acquired . | . . Robots Built . | . . Authchips . | . . Time . | . . Total Robot Build Rating . | . . Part Schematics Acquired . | . . Parts Built . | . . Authchips . | . . Time . | . . Total Part Build Rating . | . . Parts Repaired . | . . Time . | . . Parts Recycled . | . . Recycled Matter . | . . Retrieved Matter . | . . Retrieved Components . | . . Parts Scanalyzed . | . . Part Schematics Acquired . | . . Parts Damaged . | . . Bothacking | -11 -10 ------------ Run | Yrd Mat Used RIF Installer . | . . Robots Hacked . | . . Non-combat . | . . Combat . | . . Robot Hacks Applied . | . . Relay Couplers Released . | . . Fabnet Peak Effective % . | . . Robots Rewired . | . . Allies Hacked . | . . Hacks Repelled . | . . Allies | -11 -10 -------- Run | Yrd Mat Total Allies . | . . Largest Group . | . . Highest-Rated Group . | . . Highest-Rated Ally . | . . Total Orders . | . . Ally Attacks . | . . Total Damage . | . . Kills . | . . Allies Corrupted . | . . Allies Melted . | . . Intel | -11 -10 ------- Run | Yrd Mat Robot Analysis Total . | . . Derelict Logs Recovered . | . . Drone Launches . | . . Drone Recoveries . | . . Exploration | -11 -10 ------------- Run | Yrd Mat Turns Passed 420 | 60 360 Spaces Moved 177 | 38 139 Core 8 | 8 . Treads 169 | 30 139 Legs . | . . Wheels . | . . Hover . | . . Flight . | . . Fastest Speed 50 | 50 160 Average Speed 155 | 136 160 Slowest Speed 160 | 160 160 Overloaded Moves . | . . Propulsion Burnouts . | . . Robots Hopped . | . . Cave-ins Triggered . | . . Exploration Rate (%) 17 | 3 31 Regions Visited 1 Branch Regions . Pre-discovered Areas . | . . Known Exits Taken . | . . Unknown Exits Taken 1 | 1 . Scrap Searched . | . . Spaces Dug . | . . Terrain Destroyed . | . . Melee . | . . Projectile . | . . AOE . | . . Terrain Rammed . | . . Walls Destroyed . | . . Machines Disabled . | . . Actions | -11 -10 --------- Run | Yrd Mat Total 281 | 45 236 Wait 71 | . 71 Move 176 | 37 139 Hop . | . . Pick Up 7 | 3 4 Fast Attach 2 | 2 . Attach 5 | 3 2 Detach . | . . Swap . | . . Drop . | . . Fire 20 | . 20 Melee . | . . Ram . | . . Kick . | . . Crush . | . . Escape Stasis . | . . Rewire . | . . Trap . | . . Miscellaneous . | . . Route ------- -11/Scrapyard -10/Materials (discovered 1 exit: [*Min]) History --------- Turn | Location | Event 1 | -11/Scrapyard | Upgraded with Propulsion slot (x1) 1 | -11/Scrapyard | Upgraded with Utility slot (x1) 1 | -11/Scrapyard | Upgraded with Weapon slot (x1) 16 | -11/Scrapyard | Discovered new exit (range 14) 61 | -11/Scrapyard | Entered Materials 169 | -10/Materials | Discovered new exit (range 9) 323 | -10/Materials | Build established: Mutant 357 | -10/Materials | Core integrity fell below 50% 382 | -10/Materials | Core integrity fell below 20% 421 | -10/Materials | Destroyed by G-34 Mercenary with Small Laser Last Messages --------------- 00318_ Switching to secondary target: G-47 Trooper. 00336_ M-13 Machinist repairs G-47 Trooper. 00342_ Power failure, Lgt. Ion Engine shutdown. 00342_ G-34 Mercenary suffers critical hit (Burn). 00342_ G-34 Mercenary overheating. 00345_ Aluminum Leg melted. 00345_ G-34 Mercenary destroyed. 00345_ Switching to secondary target: G-47 Trooper. 00346_ Acquired 10 matter. 00349_ Overheating: Structural Scanner damaged (-5). 00352_ Overheating: Matter decay (-75). 00352_ Acquired 54 matter. 00355_ Power failure, Lgt. Ion Engine shutdown. 00356_ Lgt. Treads broken. 00356_ Overheating: Short circuit. 00357_ G-34 Mercenary destroyed. 00358_ Overheating: Core damaged (-60). 00359_ Overheating: Matter decay (-50). 00364_ Power failure, Lgt. Ion Engine shutdown. 00364_ Overheating: Matter decay (-29). Map ----- +----------------------------------------------------+ | ???????????????????????????????????????????????? | | ???????????????????????????????????????????????? | | ???????????????????????????????????????????????? | | ???????????????????????????????????????????????? | | ???????????????????????????????????????????????? | | ???????????????????????????????????????????????? | | ???????????????????????????????????????????????? | | ???????????????????????????????????????? ?????? | | ??????????????????????????????????????? ?????? | | ?????????????????????????????????????? ?????? | | ?????????????????????????????????????? #????? | | ?????????????????????????????????????? ##???? | | ?????????????????????????????????????? #???? | | ??????????????????????????????????????? #???? | | ??????????????????????????????????????? #???? | | ???????????????????????????????????????# #???? | | ???????????????????????????????????????# #???? | | ?????????????? ######### ?????????????# ##### | | ??????????????########### ?????????????# | | ?????????????? # = # ?????????????# | | ??????????????"# """ # ?????????????# | | ??????????????"# """ # ?????????????# | | ??????????????"# """ ##?????????????# | | ?????????????? # ################ | | ?????????????? # """ # / | | ?????????????? # """@# /! % | | ?????????????? # """%g% /! " | | ?????????????? # *#g [! T | | ??????????????########### g! " | | ?????????????? [ | | ???????????????? u | | ??????????????????? ######### ^ | | ??????????????????###### #"""""""# | | ???????????????????????# #" !" "# ## | | ???????????????????????# #" "# #? | | ???????????????????????# #? | | ???????????????????????# < #? | | ???????????????????????# #? | | ???????????????????????# ##### ##+#### | | ???????????????????????# #??########## | | ???????????????????????# #???????????# | | ???????????????????????# #???????????# | | ????#######????????????# #???????????# """ | | ????# ############## ###?????????# """"" | | ????# #?????????# """"" | | ????# =% #?????????# """"" | | ????# #?????????# """ | | ????# ######################?????????# | | ????## ##??????????????????????????????####### | | ?????# #?????????????????????????????????????? | +----------------------------------------------------+ Best States ------------- Heat Dissipation 25 Energy Generation 10 Energy Capacity 125 Matter Stores 300 Matter Capacity 300 Sight Range 18 Terrain Scan Density 10 Evasion (%) 50 Recoil Reduction 2 Item Schematics ----------------- None Robot Schematics ------------------ None Fabricated ------------ Nothing Alien Tech Used ----------------- None Achievements -------------- None Challenges ------------ None RPGLIKE | -11 -10 --------- Run | Yrd Mat Levels Raised . | . . XP Earned 3435 | 3000 435 XP Spent 3000 | 3000 . Upgrades 6 | 6 . Propulsion Slot 1 | 1 . Utility Slot 1 | 1 . Weapon Slot 1 | 1 . Inventory Capacity 3 | 3 . Protomatter Created 34 | . 34 Protomatter Decayed 34 | . 34 Game ------ Seed ZioniteBlastGreatsword Manual? 0 Play Time 00:03:59 Cumulative 36.1 hours Start 2025.03.26 @ 16:01:38 End 2025.03.26 @ 16:04:03 Sessions 1 Manual Loads 0 Difficulty Rogue Special Mode Winter2019/RPGLIKE Game No. 65 Rogue 65 Adventurer 0 Explorer 0 Win Type - Total 0 Types 0/0/0/0/0/0/0/0/0 Lore% 13 Gallery% 26 Achievement% 29 Wizard Run 0 Options --------- Layout 0 ASCII 0 Keyboard 0 Movement Mouse Keybinds 0 Fullscreen 1 Font 24/Smallcaps Map View 76x56 Zoom Use 0% Tactical HUD 1 Map Filters NONE Filters NONE Steam 1 RUN: 7cca0278-92ab-4f6a-b66e-9bc0c17e7e6a